Cogmind - Beta 16 *** ADVENTURER MODE // 2026.01.14 @ 14:51:18 Player: Squid Result: Destroyed by D-53 Grenadier with Mini Grenade Launcher Performance ------------- Evolutions (0) 0 Regions Visited (2) 400 Robots Destroyed (2) 10 Value Destroyed (23) 23 Prototype IDs (0) 0 Alien Tech Used (0) 0 Bonus (-55) -55 TOTAL SCORE: 378 Bonus ------- Friendly Fire -55 Cogmind --------- Core Integrity 0/250 Matter 225/300 Energy 98/100 System Corruption 0% Temperature Cool (1) Movement Walking (120) Location -10/Mines Parts ------- > --- POWER (1) -------- (None) > --- PROPULSION (2) --- Aluminum Leg > --- UTILITY (2) ------ Improved Terrain Scanner > --- WEAPON (2) ------- (None) > --- INVENTORY (5) ---- High-capacity Battery (250) Shield Generator Medium Laser Assault Rifle Assault Rifle Peak State ------------ > --- POWER ------------ Ion Engine > --- PROPULSION ------- Aluminum Leg Aluminum Leg > --- UTILITY ---------- Small Storage Unit Improved Terrain Scanner > --- WEAPON ----------- Assault Rifle Mini Grenade Launcher > --- INVENTORY -------- Ion Engine High-capacity Battery Shield Generator Medium Laser Beam Rifle Assault Rifle Mini Grenade Launcher [Rating: 11] Favorites ----------- Power Ion Engine Engine Ion Engine Propulsion Aluminum Leg Leg Aluminum Leg Utility Small Storage Unit Device Improved Terrain Scanner Storage Small Storage Unit Weapon Assault Rifle Energy Gun Beam Rifle Ballistic Gun Assault Rifle Launcher Mini Grenade Launcher Build | -11 -10 -10 ------- Run | Yrd Mat Min Slots Evolved . | . . . Power . | . . . Propulsion . | . . . Utility . | . . . Weapon . | . . . Parts Attached 11 | 7 2 2 Power 2 | 1 . 1 Engine 2 | 1 . 1 Core . | . . . Reactor . | . . . Propulsion 2 | 2 . . Treads . | . . . Leg 2 | 2 . . Wheel . | . . . Hover . | . . . Flight . | . . . Utility 2 | 2 . . Device 1 | 1 . . Storage 1 | 1 . . Processor . | . . . Hackware . | . . . Protection . | . . . Artifact . | . . . Weapon 5 | 2 2 1 Energy Gun 1 | . . 1 Energy Cannon . | . . . Ballistic Gun 2 | 2 . . Ballistic Cannon . | . . . Launcher 2 | . 2 . Special Weapon . | . . . Impact Weapon . | . . . Slashing Weapon . | . . . Piercing Weapon . | . . . Special Melee Weapon . | . . . Unidentified Prototypes . | . . . Parts Lost 5 | . . 5 Power 1 | . . 1 Propulsion 1 | . . 1 Utility 1 | . . 1 Weapon 2 | . . 2 Highest Loss Streak 5 | . . 5 To Critical Strikes . | . . . Average Backups 4 | 2 6 6 Power . | . 1 . Propulsion . | . . . Utility 1 | . 1 2 Weapon 2 | . 3 4 Tool/Special . | . . . Unused Backups 3 | . . 3 Power . | . . . Propulsion . | . . . Utility 2 | . . 2 Weapon 1 | . . 1 Tool/Special . | . . . Average Slot Usage (%) 97 | . 100 90 Engine 13 | . 14 12 Leg 26 | . 28 24 Device 14 | . 14 14 Storage 14 | . 14 14 Energy Gun 3 | . . 12 Ballistic Gun 12 | . 18 . Launcher 10 | . 9 12 Peak Build Rating 11 | 9 11 11 Average Rating 8 | 6 10 10 On Entrance 6 | . 9 11 Avg Prop Armor Cover (%) 10 | . . 10 Naked Turns . | . . . Heaviest Build 15 | 15 15 15 Greatest Support 20 | 20 20 20 Greatest Overweight (x) 1 | . . 1 Average Overweight (x) . | . . . Largest Inventory Capacity 8 | 8 8 8 Average Capacity 7 | 7 8 7 Most Carried 7 | 5 7 7 Average Carried 4 | 2 6 6 Final Capacity 8 | 8 8 5 Final Carried 7 | 2 7 5 Class Distribution -------------------- 100% | Mutant Dominant Class ---------------- Mutant | -10/Materials Mutant | -10/Mines Resources | -11 -10 -10 ----------- Run | Yrd Mat Min Matter Collected 279 | 279 . . Remotely . | . . . Salvage Created 130 | 111 . 19 Parts 5 | 5 . . Haulers Intercepted . | . . . Recyclers Shooed . | . . . Parts Field Recycled . | . . . Retrieved Matter . | . . . Parts Self-Destructed . | . . . Prevented . | . . . Parts Restored . | . . . Kills | -11 -10 -10 ------- Run | Yrd Mat Min Combat Hostiles Destroyed 11 | . . 11 AOE 11 | . . 11 Classes Destroyed 3 | 2 . 1 Tunneler 1 | 1 . . Recycler 1 | 1 . . Assembled 11 | . . 11 Best Kill Streak 11 | 2 . 11 Combat Bots Only 11 | . . 11 Max Kills in Single Turn 7 | 1 . 7 Gunslinging . | . . . Exploded 7 | . . 7 Melee . | . . . Uniques/NPCs Destroyed . | . . . Combat | -11 -10 -10 -------- Run | Yrd Mat Min Hostile Shots Fired 45 | . . 45 Missed 8 | . . 8 Hits 37 | . . 37 Melee 3 | . . 3 Projectile 34 | . . 34 AOE 16 | . . 16 Critical Strikes 2 | . . 2 Part Disruptions 3 | . . 3 Damage Taken 767 | 1 . 766 Core 252 | 1 . 251 Absorbed by Shields . | . . . Ignored by Resistances 215 | . . 215 Core Remaining (%) 99 | 99 . . Volleys Fired 9 | 4 . 5 Largest 2 | 2 . 2 Hottest 86 | 40 . 86 Shots Fired 16 | 8 . 8 Gun 11 | 8 . 3 Cannon . | . . . Launcher 5 | . . 5 Special . | . . . Kinetic 8 | 8 . . Thermal 3 | . . 3 Explosive 5 | . . 5 Electromagnetic . | . . . Robot Hit Streak 10 | 8 . 10 Robot Miss Streak 2 | . . 2 Penetration Max . | . . . Secondary Targets . | . . . Shots Hit Robots 14 | 8 . 6 Core Hits 22 | 3 . 19 Critical Kills . | . . . Critical Parts Destroyed . | . . . Critical Strikes . | . . . Melee Attacks . | . . . Impact . | . . . Slashing . | . . . Piercing . | . . . Sneak Attacks . | . . . Combat Hostiles . | . . . Follow-up Attacks . | . . . Damage Inflicted 963 | 106 . 857 Guns 148 | 104 . 44 Cannons . | . . . Explosions 813 | . . 813 Melee . | . . . Ramming 2 | 2 . . Kinetic 104 | 104 . . Thermal 44 | . . 44 Explosive 813 | . . 813 Electromagnetic . | . . . Impact . | . . . Slashing . | . . . Piercing . | . . . Highest Corruption . | . . . Average Corruption . | . . . Corruption Purged . | . . . Corruption Blocked . | . . . Overload Shots . | . . . Overflow Damage 27 | . . 27 Projectiles . | . . . Explosions 27 | . . 27 Melee . | . . . Knockbacks . | . . . Impact . | . . . Kinetic . | . . . Secondary . | . . . Self-Inflicted Damage 56 | 1 . 55 Shots 2 | . . 2 Rammed 1 | 1 . . Targets Rammed 1 | 1 . . Kicked . | . . . Crushed . | . . . Highest Temperature 114 | . . 114 Average Temperature 54 | . . 54 Received Heat Transfer 160 | . . 160 Siege Activations . | . . . Martial Activations . | . . . Shielding Activations . | . . . Robots Disrupted . | . . . Combat Hostiles . | . . . Robots Corrupted . | . . . Combat Hostiles . | . . . Parts Fried . | . . . Impact Corruptions . | . . . Robots Melted . | . . . Combat Hostiles . | . . . Parts Melted . | . . . Heat Transferred 111 | . . 111 Parts Sabotaged . | . . . Parts Stolen . | . . . Parts Stripped . | . . . Power Chain Reactions . | . . . Alert | -11 -10 -10 ------- Run | Yrd Mat Min Maximum Alert Level . | . . . Low Security (%) 100 | 100 100 100 Level 1 . | . . . Level 2 . | . . . Level 3 . | . . . Level 4 . | . . . Level 5 . | . . . High Security . | . . . Max Security . | . . . Peak Influence 29 | 5 . 29 Initial . | . . . Average 1 | . . 8 Influence Increases 52 | 10 . 42 Destroy 0b10 Robot/NC 10 | 10 . . Disable Machine 9 | . . 9 Destroy Structure 33 | . . 33 Influence Decreases 52 | 10 . 42 Time Decay 32 | 10 . 22 Lost Part 20 | . . 20 Squads Dispatched . | . . . Investigation . | . . . Extermination . | . . . Reinforcement . | . . . Assault . | . . . Garrison . | . . . Intercept . | . . . Searches Triggered . | . . . Construction Impeded . | . . . Haulers Reinforced . | . . . Active Scanning Responses . | . . . Cargo Convoy Interrupts . | . . . Stealth | -11 -10 -10 --------- Run | Yrd Mat Min Distress Signals . | . . . Communications Jammed . | . . . Distress Signals . | . . . Times Spotted 19 | . 1 18 Peak Tracking Total 11 | . 1 11 Tactical Retreats . | . . . Traps | -11 -10 -10 ------- Run | Yrd Mat Min Traps Triggered . | . . . Indirectly . | . . . Trap Hack Attempts . | . . . Triggered . | . . . Disarmed . | . . . Reprogrammed . | . . . Reused . | . . . Traps Extracted . | . . . Installed . | . . . Triggered . | . . . Machines | -11 -10 -10 ---------- Run | Yrd Mat Min Machines Disabled 1 | . . 1 Max in Single Turn 1 | . . 1 Machines Repaired . | . . . Machines Dismantled . | . . . Machines Sabotaged . | . . . Overloaded Fab Kills . | . . . Hacking | -11 -10 -10 --------- Run | Yrd Mat Min Machines Accessed . | . . . Terminals . | . . . Fabricators . | . . . Repair Stations . | . . . Recycling Units . | . . . Scanalyzers . | . . . Garrison Access . | . . . Total Hacks . | . . . Successful . | . . . Failed . | . . . Catastrophic . | . . . Database Lockouts . | . . . Manual . | . . . Terminals . | . . . Fabricators . | . . . Repair Stations . | . . . Recycling Units . | . . . Scanalyzers . | . . . Garrison Access . | . . . Terminal Hacks . | . . . Fabricator Hacks . | . . . Repair Station Hacks . | . . . Recycling Unit Hacks . | . . . Scanalyzer . | . . . Garrison Access Hacks . | . . . Unauthorized Hacks . | . . . Terminals . | . . . Fabricators . | . . . Repair Stations . | . . . Recycling Units . | . . . Scanalyzers . | . . . Garrison Access . | . . . Data Cores Recovered . | . . . Used . | . . . Hacking Detections . | . . . Full Trace Events . | . . . Feedback Events . | . . . Feedback Blocked . | . . . Robot Schematics Acquired . | . . . Robots Built . | . . . Authchips . | . . . Time . | . . . Total Robot Build Rating . | . . . Part Schematics Acquired . | . . . Parts Built . | . . . Authchips . | . . . Time . | . . . Total Part Build Rating . | . . . Part Studies Acquired . | . . . Parts Repaired . | . . . Time . | . . . Parts Recycled . | . . . Recycled Matter . | . . . Retrieved Matter . | . . . Retrieved Components . | . . . Parts Scanalyzed . | . . . Part Schematics Acquired . | . . . Parts Damaged . | . . . Bothacking | -11 -10 -10 ------------ Run | Yrd Mat Min Used RIF Installer . | . . . Robots Hacked . | . . . Non-combat . | . . . Combat . | . . . Robot Hacks Applied . | . . . Relay Couplers Released . | . . . Fabnet Peak Effective % . | . . . Robots Rewired . | . . . Allies Hacked . | . . . Hacks Repelled . | . . . Allies | -11 -10 -10 -------- Run | Yrd Mat Min Total Allies . | . . . Largest Group . | . . . Highest-Rated Group . | . . . Highest-Rated Ally . | . . . Total Orders . | . . . Ally Attacks . | . . . Total Damage . | . . . Kills . | . . . Allies Corrupted . | . . . Allies Melted . | . . . Intel | -11 -10 -10 ------- Run | Yrd Mat Min Active Infowar (turns) 316 | 73 174 69 Terrain 316 | 73 174 69 Robot Analysis Total . | . . . Derelict Logs Recovered . | . . . Drone Launches . | . . . Drone Recoveries . | . . . Exploration | -11 -10 -10 ------------- Run | Yrd Mat Min Turns Passed 523 | 280 174 69 Spaces Moved 377 | 200 139 38 Core 38 | 38 . . Treads . | . . . Legs 339 | 162 139 38 Wheels . | . . . Hover . | . . . Flight . | . . . Fastest Speed 50 | 50 120 120 Average Speed 115 | 106 120 142 Slowest Speed 190 | 120 120 190 Overloaded Moves . | . . . Propulsion Burnouts . | . . . Robots Hopped . | . . . Potential Cave-ins . | . . . Cave-ins Triggered . | . . . Exploration Rate (%) 17 | 10 27 16 Regions Visited 2 Branch Regions 1 Pre-discovered Areas . | . . . Known Exits Taken . | . . . Unknown Exits Taken 2 | 1 1 . Scrap Searched . | . . . Spaces Dug . | . . . Terrain Destroyed 35 | . . 35 Melee . | . . . Projectile . | . . . AOE 35 | . . 35 Terrain Rammed . | . . . Walls Destroyed . | . . . Machines Disabled . | . . . Actions | -11 -10 -10 --------- Run | Yrd Mat Min Total 448 | 258 145 45 Wait 38 | 38 . . Move 375 | 199 138 38 Hop . | . . . Pick Up 14 | 9 5 . Fast Attach . | . . . Attach 8 | 7 . 1 Detach . | . . . Swap 3 | . 2 1 Drop . | . . . Fire 9 | 4 . 5 Melee . | . . . Ram 1 | 1 . . Kick . | . . . Crush . | . . . Escape Stasis . | . . . Rewire . | . . . Trap . | . . . Miscellaneous . | . . . Route ------- -11/Scrapyard -10/Materials -10/Mines History --------- Turn | Location | Event 11 | -11/Scrapyard | Discovered new exit (range 15) 281 | -11/Scrapyard | Entered Materials 301 | -10/Materials | Build established: Mutant 438 | -10/Materials | Discovered new exit (range 12) 455 | -10/Materials | Entered Mines 456 | -10/Mines | Assembled infested the area 461 | -10/Mines | Assisted by a Guerilla fighting off Assembled 490 | -10/Mines | Met a Derelict who couldn't figure out how to use a Trap Extractor 514 | -10/Mines | Core integrity fell below 50% 515 | -10/Mines | Destroyed 11 combat bots 520 | -10/Mines | Core integrity fell below 20% 524 | -10/Mines | Destroyed by D-53 Grenadier with Mini Grenade Launcher Last Messages --------------- Machine disabled. The unstable cave ceiling collapses. U-05 Engineer lays Concrete. The unstable cave ceiling collapses. U-05 Engineer lays Concrete. The unstable cave ceiling collapses. U-05 Engineer lays Concrete. Aluminum Leg destroyed. U-05 Engineer lays Concrete. Mni. Grenade Launcher destroyed. R-06 Scavenger collects Flexi-carbon Leg. U-05 Engineer builds a Wall. The unstable cave ceiling collapses. Beam Rifle destroyed. Ion Engine destroyed. U-05 Engineer lays Concrete. U-05 Engineer builds a Wall. The unstable cave ceiling collapses. Sml. Storage Unit destroyed. The unstable cave ceiling collapses. Map ----- +----------------------------------------------------+ | | | | | | | | | | | | | | | | | ???????????????????????????????????????????????? | | ???????????????????????????????????????????????? | | ???????????????????????????????????????????????? | | ???????????????????????????????????????????????? | | ???????????????????????????????????????????????? | | ???????????????????????????????????????????????? | | ???????????????????????????????????????????????? | | ???????????????????????????????????????????????? | | ??????????????????????###?????? =%????????????? | | ??????????????????#??? ????? [ ????????????? | | ?????????????????????? a???? %%=#????????????? | | ?????????????"????????# #???? [* #????????????? | | ????????????? ??????## #???! #????????????? | | ?????????????"""??????# #??! #????????????? | | ?????????????""" ?????# #?? =% #?????????????? | | ???????"???" """ ##### ## #????#?????????? | | ??????????? # # #????????????????? | | ???????????????### @ % #????????????????? | | ?????????????#?# #????????????????? | | ?????????????# # a ##???????????????? | | ????????????## ] #?????????????? | | ?????????????## ###?????????????? | | ??????????????# # # #####???????????????? | | ??????#???????## #???????????????????? | | ??????????????# ####???????????????????? | | ??????????##??# ##?????#??????????????? | | ?????#???##""## d #????????????????????? | | ?????????#"=!^ ##?#??????????????????? | | ???#???#?#"=/ " ##???????#?????????????? | | ?????????#"! =" #??????????????????????? | | ?????????#"!!*! ###?????????????????????? | | ?????????##" % # #?????? ??????????????? | | ???#??????## # #?????? ??????????????? | | ???????????# # %! %??????????????? | | ?????????#?# # | ??????????????? | | ???????????### ### ? ?????????????? | | ?????????????### # ## ???????????????? | | ???????#???????# #### ???????????????? | | ???????????????#####??# #????????????????? | | ?????????????????#?????# " ###????????????????? | | ???#????????????????????"%###??????????????????? | | ???????????????????????? "#????????????????????? | +----------------------------------------------------+ Best States ------------- Heat Dissipation 25 Energy Generation 10 Energy Capacity 250 Matter Stores 300 Matter Capacity 300 Sight Range 16 Terrain Scan Range 16 Terrain Scan Density 10 Resistance: KI 20 Resistance: TH 20 Resistance: EX 20 Resistance: EM 20 Resistance: I 20 Resistance: S 20 Resistance: P 20 Evasion (%) 55 Offensive Hacking 10 Item Schematics ----------------- None Robot Schematics ------------------ None Fabricated ------------ Nothing Repaired ---------- Nothing Studied --------- None Alien Tech Used ----------------- None Achievements -------------- Let's See Who's Tougher Quick And Dirty Challenges ------------ None Game ------ Seed KineticEnergyMonowheel Manual? 0 Play Time 00:13:16 Cumulative 2.7 hours Start 2025.12.20 @ 19:24:04 End 2026.01.14 @ 14:51:18 Sessions 2 Manual Loads 0 Difficulty Adventurer Special Mode None Game No. 5 Rogue 0 Adventurer 5 Explorer 0 Win Type - Total 0 Types 0/0/0/0/0/0/0/0/0/0 Lore% 2 Gallery% 5 Achievement% 5 Wizard Run 0 Options --------- Layout 1 ASCII 0 Keyboard 0 Movement Arrows Keybinds 0 Fullscreen 1 Font 32/SmallcapsGlow Map View 50x40 Zoom Use 0% Tactical HUD 0 Map Filters NONE Filters NONE Steam 1 RUN: 74c7abff-d0a2-4cf7-89d0-9758510d5009